fUSD/lending_fUSD_20260202
["ID","MTS","AMOUNT","RATE_DAILY","PERIOD"]
[404361442,1770076252018,-1072.77,0.00013698,2]
[404361443,1770076252030,-1072.77,0.00013698,2]
[404361444,1770076252040,-1073.0,0.00013698,2]
[404361445,1770076252050,-500.0,0.00013698,2]
[404361446,1770076252060,-500.0,0.00013698,2]
[404361447,1770076252070,-500.0,0.00013698,2]
[404361448,1770076252081,-500.0,0.00013698,2]
[404361449,1770076252091,-500.0,0.00013698,2]
[404361450,1770076252102,-500.0,0.00013698,2]
[404361451,1770076252112,-172.30032513,0.00013698,2]
[404361452,1770076252123,-500.0,0.00013698,2]
[404361453,1770076252136,-500.0,0.00013698,2]
[404361454,1770076252147,-500.0,0.00013698,2]
[404361455,1770076252158,-500.0,0.00013698,2]
[404361456,1770076252168,-500.0,0.00013698,2]
[404361457,1770076252178,-540.92,0.00013698,2]
[404361458,1770076252188,-500.0,0.00013698,2]
[404361459,1770076252198,-540.92,0.00013698,2]
[404361460,1770076252208,-500.0,0.00013698,2]
[404361461,1770076252217,-540.92,0.00013698,2]
[404361462,1770076252227,-500.0,0.00013698,2]
[404361463,1770076252236,-540.92,0.00013698,2]
[404361464,1770076252246,-500.0,0.00013698,2]
[404361465,1770076252257,-540.92,0.00013698,2]
[404361466,1770076252267,-500.0,0.00013698,2]
[404361467,1770076252277,-540.92,0.00013698,2]
[404361468,1770076252287,-540.92,0.00013698,2]
[404361469,1770076252297,-378.11080496,0.00013698,2]
[404361470,1770076252308,-540.92,0.00013698,2]
[404361471,1770076252319,-540.92,0.00013698,2]
[404361472,1770076252328,-540.92,0.00013698,2]
[404361473,1770076252339,-540.92,0.00013698,2]
[404361474,1770076252350,-540.92,0.00013698,2]
[404361475,1770076252360,-500.0,0.00013698,2]
[404361476,1770076252369,-500.0,0.00013698,2]
[404361477,1770076252380,-500.0,0.00013698,2]
[404361478,1770076252393,-500.0,0.00013698,2]
[404361479,1770076252405,-500.0,0.00013698,2]
[404361480,1770076252416,-500.0,0.00013698,2]
[404361481,1770076252429,-500.0,0.00013698,2]
[404361482,1770076252440,-500.0,0.00013698,2]
[404361483,1770076252450,-440.6625364,0.00013698,2]
[404361484,1770076252462,-272.51,0.00013699,2]
[404361485,1770076252471,-227.09,0.00013699,2]
[404361486,1770076252482,-189.24,0.00013699,2]
[404361487,1770076252492,-189.24,0.00013699,2]
[404361488,1770076252502,-756.99,0.00013699,2]
[404361489,1770076252512,-500.63586771,0.00013699,2]
[404361490,1770076252523,-500.46237197,0.00013699,2]
[404361491,1770076252533,-163.34993731,0.00013699,2]
[404361492,1770076252544,-500.0,0.00013699,2]
[404361493,1770076252554,-500.0,0.00013699,2]
[404361494,1770076252565,-500.0,0.00013699,2]
[404361495,1770076252576,-500.0,0.00013699,2]
[404361496,1770076252587,-500.6120606,0.00013699,2]
[404361497,1770076252597,-500.0,0.00013699,2]
[404361498,1770076252607,-464.35211832,0.00013699,2]
[404361499,1770076252618,-500.0,0.00013699,2]
[404361500,1770076252630,-200.70028911,0.00013699,2]
[404361501,1770076252639,-500.0,0.00013699,2]
[404361502,1770076252649,-500.0,0.00013699,2]
[404361503,1770076252660,-163.12661798,0.00013699,2]
[404361504,1770076252670,-500.0,0.00013699,2]
[404361505,1770076252680,-500.0,0.00013699,2]
[404361506,1770076252879,-500.0,0.00013699,2]
[404361507,1770076252891,-559.67308476,0.00013699,2]
[404361508,1770076252900,-500.0,0.00013699,2]
[404361509,1770076252910,-500.0,0.00013699,2]
[404361510,1770076252919,-500.0,0.00013699,2]
[404361511,1770076252929,-163.46067997,0.00013699,2]
[404361512,1770076252939,-500.0,0.00013699,2]
[404361513,1770076252948,-500.0,0.00013699,2]
[404361514,1770076252958,-522.30858015,0.00013699,2]
[404361515,1770076252968,-500.0,0.00013699,2]
[404361516,1770076252977,-500.0,0.00013699,2]
[404361517,1770076252987,-500.0,0.00013699,2]
[404361518,1770076252996,-512.94754167,0.00013699,2]
[404361519,1770076253005,-500.0,0.00013699,2]
[404361520,1770076253015,-500.0,0.00013699,2]
[404361521,1770076253025,-500.0,0.00013699,2]
[404361522,1770076253034,-500.0,0.00013699,2]
[404361523,1770076253044,-500.0,0.00013699,2]
[404361524,1770076253054,-500.0,0.00013699,2]
[404361525,1770076253064,-574.06272579,0.00013699,2]
[404361526,1770076253074,-500.0,0.00013699,2]
[404361527,1770076253084,-500.0,0.00013699,2]
[404361528,1770076253094,-500.0,0.00013699,2]
[404361529,1770076253105,-500.0,0.00013699,2]
[404361530,1770076253115,-500.0,0.00013699,2]
[404361531,1770076253124,-160.61738464,0.00013699,2]
[404361532,1770076253135,-500.0,0.00013699,2]
[404361533,1770076253145,-460.30125151,0.00013699,2]
[404361534,1770076253155,-500.41005015,0.00013699,2]
[404361535,1770076253165,-336.43827265,0.00013699,2]
[404361536,1770076253174,-500.0,0.00013699,2]
[404361537,1770076253184,-500.0,0.00013699,2]
[404361538,1770076253193,-500.0,0.00013699,2]
[404361539,1770076253204,-500.40906893,0.00013699,2]
[404361540,1770076253213,-151.07783782,0.00013699,2]
[404361541,1770076253223,-500.62768041,0.00013699,2]
[404361542,1770076253233,-161.45537985,0.00013699,2]
[404361543,1770076253243,-160.54295648,0.00013699,2]
[404361544,1770076253252,-500.0,0.00013699,2]
[404361545,1770076253262,-500.0,0.00013699,2]
[404361546,1770076253272,-486.29318482,0.00013699,2]
[404361547,1770076253282,-500.0,0.00013699,2]
[404361548,1770076253291,-500.0,0.00013699,2]
[404361549,1770076253301,-185.46503654,0.00013699,2]
[404361550,1770076253311,-550.09529227,0.00013699,2]
[404361551,1770076253320,-500.0,0.00013699,2]
[404361552,1770076253330,-500.0,0.00013699,2]
[404361553,1770076253340,-500.0,0.00013699,2]
[404361554,1770076253350,-500.0,0.00013699,2]
[404361555,1770076253361,-593.37800921,0.00013699,2]
[404361556,1770076253370,-500.0,0.00013699,2]
[404361557,1770076253380,-340.09137446,0.00013699,2]
[404361558,1770076253392,-500.0,0.00013699,2]
[404361559,1770076253403,-500.0,0.00013699,2]
[404361560,1770076253413,-500.0,0.00013699,2]
[404361561,1770076253423,-500.0,0.00013699,2]
[404361562,1770076253432,-168.03217975,0.00013699,2]
[404361563,1770076253442,-500.0,0.00013699,2]
[404361564,1770076253452,-500.0,0.00013699,2]
[404361565,1770076253462,-565.00011393,0.00013699,2]
[404361566,1770076253472,-558.47394043,0.00013699,2]
[404361567,1770076253482,-500.0,0.00013699,2]
[404361568,1770076253491,-3518.02,0.000137,2]
[404361569,1770076253501,-3518.02,0.000137,2]
[404361570,1770076253511,-3518.02,0.000137,2]
[404361571,1770076253521,-3518.02,0.000137,2]
[404361572,1770076253531,-3518.02,0.000137,2]
[404361573,1770076253540,-6453.0,0.00013719,2]
[404361574,1770076253550,-63303.61704802,0.00013735,2]
[404361575,1770076253560,-74379.65883774,0.00013735,2]
[404361576,1770076253569,-2129.0,0.00013737,2]
[404361577,1770076253579,-200.0,0.0001376,2]
[404361578,1770076253589,-200.0,0.00013806,2]
[404361579,1770076253600,-200.0,0.00013806,2]
[404361580,1770076253609,-1012.36,0.00013833,2]
[404361581,1770076253619,-208.65826531,0.00013836,2]
[404361582,1770076253629,-500.0,0.00013836,2]
[404361583,1770076253639,-200.0,0.00013836,2]
[404361584,1770076253648,-11308.27724113,0.00013884,2]
[404361585,1770076253658,-200.0,0.00013897,2]
[404361586,1770076253667,-162.0,0.000139,2]
[404361587,1770076253676,-225.18697532,0.000139,2]
[404361588,1770076253686,-4000.0,0.0001391,2]
[404361589,1770076253695,-150.0,0.00013925,2]
[404361590,1770076253705,-200.0,0.00013944,2]
[404361591,1770076253715,-200.0,0.00013944,2]
[404361592,1770076253725,-1109.13535275,0.0001406,2]
[404361593,1770076253734,-1012.36,0.00014107,2]
[404361594,1770076253745,-846.12,0.00014136,2]
[404361595,1770076253755,-500.0,0.00014136,2]
[404361596,1770076253765,-649.78,0.00014136,2]
[404361597,1770076253774,-540.92,0.00014136,2]
[404361598,1770076253784,-280.03725112,0.00014155,2]
[404361599,1770076253794,-1910.18787185,0.00014155,2]
[404361600,1770076253803,-359.76179104,0.00014171,2]
[404361601,1770076253813,-1000.0,0.00014247,2]
[404361602,1770076253822,-486.90150068,0.00014247,2]
[404361603,1770076253832,-335.25607575,0.00014247,2]
[404361604,1770076253842,-500.0,0.00014247,2]
[404361605,1770076253851,-1137.78662466,0.00014247,2]
[404361606,1770076253862,-494.98211284,0.00014247,2]
[404361607,1770076253872,-1000.0,0.00014247,2]
[404361608,1770076253883,-1000.0,0.00014247,2]
[404361609,1770076253893,-1000.0,0.00014247,2]
[404361610,1770076253902,-1000.0,0.00014247,2]
[404361611,1770076253912,-1000.0,0.00014247,2]
[404361612,1770076253922,-1000.0,0.00014247,2]
[404361613,1770076253931,-1000.0,0.00014247,2]
[404361614,1770076253942,-1000.0,0.00014247,2]
[404361615,1770076253952,-1000.0,0.00014247,2]
[404361616,1770076253962,-504.20951303,0.00014247,2]
[404361617,1770076253971,-1000.0,0.00014247,2]
[404361618,1770076253981,-1000.0,0.00014247,2]
[404361619,1770076253991,-500.0,0.00014247,2]
[404361620,1770076254000,-1000.0,0.00014247,2]
[404361621,1770076254011,-502.15998223,0.00014247,2]
[404361622,1770076254021,-1000.0,0.00014247,2]
[404361623,1770076254031,-1000.0,0.00014247,2]
[404361624,1770076254040,-1000.0,0.00014247,2]
[404361625,1770076254050,-1000.0,0.00014247,2]
[404361626,1770076254060,-1000.0,0.00014247,2]
[404361627,1770076254070,-500.0,0.00014247,2]
[404361628,1770076254079,-1000.0,0.00014247,2]
[404361629,1770076254089,-1000.0,0.00014247,2]
[404361630,1770076254099,-1000.0,0.00014247,2]
[404361631,1770076254108,-1000.0,0.00014247,2]
[404361632,1770076254118,-1000.0,0.00014247,2]
[404361633,1770076254127,-500.0,0.00014247,2]
[404361634,1770076254137,-1000.0,0.00014247,2]
[404361635,1770076254147,-501.28378078,0.00014247,2]
[404361636,1770076254156,-1000.0,0.00014247,2]
[404361637,1770076254166,-1000.0,0.00014247,2]
[404361638,1770076254175,-1000.0,0.00014247,2]
[404361639,1770076254185,-1000.0,0.00014247,2]
[404361640,1770076254194,-1000.0,0.00014247,2]
[404361641,1770076254203,-1000.0,0.00014247,2]
[404361642,1770076254213,-1000.0,0.00014247,2]
[404361643,1770076254222,-1000.0,0.00014247,2]
[404361644,1770076254232,-1000.0,0.00014247,2]
[404361645,1770076254241,-1012.36,0.00014381,2]
[404361646,1770076254250,-500.0,0.00014384,2]
[404361647,1770076254259,-200.0,0.00014384,2]
[404361648,1770076254268,-773.23,0.00014384,2]
[404361649,1770076254278,-233.51889341,0.00014448,2]
[404361650,1770076254287,-2350.93477356,0.00014458,2]
[404361651,1770076254296,-300.0,0.00014473,2]
[404361652,1770076254306,-162.0,0.000145,2]
[404361653,1770076254315,-1079.92769135,0.00014627,2]
[404361654,1770076254326,-1999.74936754,0.00014627,2]
[404361655,1770076254335,-1012.36,0.00014655,2]
[404361656,1770076254345,-773.23,0.00014658,2]
[404361657,1770076254355,-290.39862941,0.00014703,2]
[404361658,1770076254364,-1980.86482311,0.00014703,2]
[404361659,1770076254374,-151.0,0.00014773,2]
[404361660,1770076254386,-63303.61704802,0.00014776,2]
[404361661,1770076254395,-74379.65883774,0.00014776,2]
[404361662,1770076254404,-1500.0,0.00014795,2]
[404361663,1770076254414,-464.09949899,0.00014795,2]
[404361664,1770076254423,-500.0,0.00014795,2]
[404361665,1770076254433,-1500.0,0.00014795,2]
[404361666,1770076254442,-1136.09023448,0.00014795,2]
[404361667,1770076254452,-1500.0,0.00014795,2]
[404361668,1770076254463,-1500.0,0.00014795,2]
[404361669,1770076254475,-432.32446254,0.00014795,2]
[404361670,1770076254485,-500.0,0.00014795,2]
[404361671,1770076254495,-1191.30611065,0.00014795,2]
[404361672,1770076254505,-500.0,0.00014795,2]
[404361673,1770076254515,-871.81162767,0.00014795,2]
[404361674,1770076254524,-1450.35816697,0.00014795,2]
[404361675,1770076254534,-1500.0,0.00014795,2]
[404361676,1770076254543,-1484.36146112,0.00014795,2]
[404361677,1770076254555,-1500.0,0.00014795,2]
[404361678,1770076254567,-368.88723017,0.00014795,2]
[404361679,1770076254579,-1500.0,0.00014795,2]
[404361680,1770076254590,-500.0,0.00014795,2]
[404361681,1770076254602,-1500.0,0.00014795,2]
[404361682,1770076254611,-1503.56470175,0.00014795,2]
[404361683,1770076254620,-1000.0,0.00014795,2]
[404361684,1770076254630,-630.25604329,0.00014795,2]
[404361685,1770076254640,-1500.0,0.00014795,2]
[404361686,1770076254648,-503.30357537,0.00014795,2]
[404361687,1770076254658,-1408.63714551,0.00014795,2]
[404361688,1770076254667,-525.04982288,0.00014795,2]
[404361689,1770076254676,-1502.44429427,0.00014795,2]
[404361690,1770076254688,-217.59133136,0.00014795,2]
[404361691,1770076254699,-1500.0,0.00014795,2]
[404361692,1770076254709,-1012.36,0.00014929,2]
[404361693,1770076254718,-500.0,0.00014932,2]
[404361694,1770076254728,-200.0,0.00014932,2]
[404361695,1770076254737,-773.23,0.00014932,2]
[404361696,1770076254746,-242.15909246,0.00014996,2]
[404361697,1770076254756,-250.0,0.00015,2]
[404361698,1770076254766,-450.0,0.00015021,2]
[404361699,1770076254776,-868.9,0.00015068,2]
[404361700,1770076254786,-9035.0,0.0001509,2]
[404361701,1770076254796,-3620.0,0.0001511,2]
[404361702,1770076254807,-150.02317292,0.00015158,2]
[404361703,1770076254817,-1012.44586456,0.00015203,2]
[404361704,1770076254827,-11308.27724113,0.00015223,2]
[404361705,1770076254835,-272.10659233,0.00015251,2]
[404361706,1770076254844,-2054.15682157,0.00015251,2]
[404361707,1770076254854,-162.0,0.000153,2]
[404361708,1770076254864,-988.5,0.00015342,2]
[404361709,1770076254874,-501.43163729,0.00015342,2]
[404361710,1770076254883,-365.91722632,0.00015342,2]
[404361711,1770076254892,-1500.0,0.00015342,2]
[404361712,1770076254900,-1006.52245564,0.00015342,2]
[404361713,1770076254910,-269.29562662,0.00015342,2]
[404361714,1770076254920,-2000.0,0.00015342,2]
[404361715,1770076254930,-2000.0,0.00015342,2]
[404361716,1770076254940,-501.85428238,0.00015342,2]
[404361717,1770076254949,-500.0,0.0001548,2]
[404361718,1770076254960,-200.0,0.0001548,2]
[404361719,1770076254969,-373.07297731,0.0001554,2]
[404361720,1770076254979,-621.78829552,0.00015542,2]
[404361721,1770076254989,-775.47832561,0.00015542,2]
[404361722,1770076254999,-251.11897888,0.00015544,2]
[404361723,1770076255008,-201.39718201,0.00015569,2]
[404361724,1770076255018,-201.25,0.00015778,2]
[404361725,1770076255028,-63303.61704802,0.00015818,2]
[404361726,1770076255038,-74379.65883774,0.00015818,2]
[404361727,1770076255047,-200.0,0.00015838,2]
[404361728,1770076255057,-284.29,0.00015869,2]
[404361729,1770076255067,-2500.0,0.0001589,2]
[404361730,1770076255077,-1000.0,0.00015918,2]
[404361731,1770076255087,-5000.0,0.0001596,2]
[404361732,1770076255097,-500.0,0.00015973,2]
[404361733,1770076255107,-5588.804,0.00016021,2]
[404361734,1770076255118,-478.707,0.00016021,2]
[404361735,1770076255129,-500.0,0.00016028,2]
[404361736,1770076255141,-200.0,0.00016028,2]
[404361737,1770076255153,-201.25,0.00016077,2]
[404361738,1770076255163,-260.4103811,0.00016092,2]
[404361739,1770076255172,-9999.99,0.00016116,2]
[404361740,1770076255181,-201.25,0.00016375,2]
[404361741,1770076255194,-519.2350024,0.00016437,2]
[404361742,1770076255207,-846.12,0.00016437,2]
[404361743,1770076255267,-500.0,0.00016437,2]
[404361744,1770076255279,-649.78,0.00016437,2]
[404361745,1770076255287,-540.92,0.00016437,2]
[404361746,1770076255298,-1775.49530724,0.00016438,2]
[404361747,1770076255308,-1775.49530724,0.00016438,2]
[404361748,1770076255317,-1775.49530724,0.00016438,2]
[404361749,1770076255326,-1775.49530724,0.00016438,2]
[404361750,1770076255335,-1775.49530724,0.00016438,2]
[404361751,1770076255344,-1775.49530724,0.00016438,2]
[404361752,1770076255352,-1775.49530724,0.00016438,2]
[404361753,1770076255361,-1775.49530724,0.00016438,2]
[404361754,1770076255370,-1775.49530724,0.00016438,2]
[404361755,1770076255380,-1775.49530724,0.00016438,2]
[404361756,1770076255393,-1775.49530724,0.00016438,2]
[404361757,1770076255402,-1775.49530724,0.00016438,2]
[404361758,1770076255411,-1775.49530724,0.00016438,2]
[404361759,1770076255422,-1775.49530724,0.00016438,2]
[404361760,1770076255433,-1775.49530724,0.00016438,2]
[404361761,1770076255442,-1775.49530724,0.00016438,2]
[404361762,1770076255452,-1775.49530724,0.00016438,2]
[404361763,1770076255461,-1775.49530724,0.00016438,2]
[404361764,1770076255473,-1775.49530724,0.00016438,2]
[404361765,1770076255483,-1775.49530724,0.00016438,2]
[404361766,1770076255493,-1775.49530724,0.00016438,2]
[404361767,1770076255502,-1775.49530724,0.00016438,2]
[404361768,1770076255511,-1775.49530724,0.00016438,2]
[404361769,1770076255521,-1775.49530724,0.00016438,2]
[404361770,1770076255531,-1775.49530724,0.00016438,2]
[404361771,1770076255540,-1775.49530724,0.00016438,2]
[404361772,1770076255550,-1775.49530724,0.00016438,2]
[404361773,1770076255560,-1775.49530724,0.00016438,2]
[404361774,1770076255570,-1775.49530724,0.00016438,2]
[404361775,1770076255579,-1775.49530724,0.00016438,2]
[404361776,1770076255589,-1775.49530724,0.00016438,2]
[404361777,1770076255598,-1775.49530724,0.00016438,2]
[404361778,1770076255608,-1775.49530724,0.00016438,2]
[404361779,1770076255618,-1775.49530724,0.00016438,2]
[404361780,1770076255628,-1775.49530724,0.00016438,2]
[404361781,1770076255638,-1775.49530724,0.00016438,2]
[404361782,1770076255648,-1775.49530724,0.00016438,2]
[404361783,1770076255659,-1775.49530724,0.00016438,2]
[404361784,1770076255671,-1775.49530724,0.00016438,2]
[404361785,1770076255682,-1775.49530724,0.00016438,2]
[404361786,1770076255693,-1775.49530724,0.00016438,2]
[404361787,1770076255702,-1775.49530724,0.00016438,2]
[404361788,1770076255711,-1775.49530724,0.00016438,2]
[404361789,1770076255719,-1775.49530724,0.00016438,2]
[404361790,1770076255728,-1743.21357437,0.00016438,2]
[404361791,1770076255737,-1743.21357437,0.00016438,2]
[404361792,1770076255747,-1743.21357437,0.00016438,2]
[404361793,1770076255756,-1743.21357437,0.00016438,2]
[404361794,1770076255765,-1743.21357437,0.00016438,2]
[404361795,1770076255774,-1743.21357437,0.00016438,2]
[404361796,1770076255783,-1743.21357437,0.00016438,2]
[404361797,1770076255792,-1743.21357437,0.00016438,2]
[404361798,1770076255801,-1743.21357437,0.00016438,2]
[404361799,1770076255810,-1743.21357437,0.00016438,2]
[404361800,1770076255818,-1743.21357437,0.00016438,2]
[404361801,1770076255834,-1743.21357437,0.00016438,2]
[404361802,1770076255843,-1743.21357437,0.00016438,2]
[404361803,1770076255852,-1743.21357437,0.00016438,2]
[404361804,1770076255862,-1743.21357437,0.00016438,2]
[404361805,1770076255878,-1743.21357437,0.00016438,2]
[404361806,1770076255894,-1743.21357437,0.00016438,2]
[404361807,1770076255906,-1743.21357437,0.00016438,2]
[404361808,1770076255916,-1743.21357437,0.00016438,2]
[404361809,1770076255927,-1743.21357437,0.00016438,2]
[404361810,1770076255937,-1743.21357437,0.00016438,2]
[404361811,1770076255948,-1743.21357437,0.00016438,2]
[404361812,1770076255958,-1743.21357437,0.00016438,2]
[404361813,1770076255968,-1743.21357437,0.00016438,2]
[404361814,1770076255978,-1743.21357437,0.00016438,2]
[404361815,1770076255987,-1743.21357437,0.00016438,2]
[404361816,1770076255997,-1743.21357437,0.00016438,2]
[404361817,1770076256006,-1743.21357437,0.00016438,2]
[404361818,1770076256016,-1743.21357437,0.00016438,2]
[404361819,1770076256026,-1743.21357437,0.00016438,2]
[404361820,1770076256038,-1743.21357437,0.00016438,2]
[404361821,1770076256050,-1743.21357437,0.00016438,2]
[404361822,1770076256060,-1728.6867946,0.00016438,2]
[404361823,1770076256070,-1728.6867946,0.00016438,2]
[404361824,1770076256079,-1728.6867946,0.00016438,2]
[404361825,1770076256089,-1728.6867946,0.00016438,2]
[404361826,1770076256099,-1728.6867946,0.00016438,2]
[404361827,1770076256108,-1728.6867946,0.00016438,2]
[404361828,1770076256117,-1728.6867946,0.00016438,2]
[404361829,1770076256128,-1728.6867946,0.00016438,2]
[404361830,1770076256139,-1728.6867946,0.00016438,2]
[404361831,1770076256149,-1728.6867946,0.00016438,2]
[404361832,1770076256159,-1728.6867946,0.00016438,2]
[404361833,1770076256169,-1728.68679455,0.00016438,2]
[404361834,1770076256179,-2000.0,0.00016438,2]
[404361835,1770076256189,-800.0,0.00016438,2]
[404361836,1770076256198,-150.25668222,0.00016438,2]
[404361837,1770076256208,-3000.0,0.00016438,2]
[404361838,1770076256218,-150.02317292,0.00016448,2]
[404361839,1770076256227,-5888.0,0.0001645,2]
[404361840,1770076256236,-1000.0,0.00016515,2]
[404361841,1770076256248,-11308.27724113,0.00016561,2]
[404361842,1770076256260,-500.0,0.00016576,2]
[404361843,1770076256271,-200.0,0.00016576,2]
[404361844,1770076256280,-12649.0,0.000166,2]
[404361845,1770076256290,-270.0455652,0.0001664,2]
[404361846,1770076256301,-1630.0,0.00016656,2]
[404361847,1770076256310,-5888.0,0.00016674,2]
[404361848,1770076256319,-1630.0,0.00016716,2]
[404361849,1770076256338,-1630.0,0.00016725,2]
[404361850,1770076256353,-1630.0,0.00016729,2]
[404361851,1770076256364,-500.0,0.00016744,2]
[404361852,1770076256374,-367.4379883,0.00016759,2]
[404361853,1770076256388,-2602.29944508,0.00016763,2]
[404361854,1770076256398,-159.60859955,0.00016766,2]
[404361855,1770076256409,-1630.0,0.00016788,2]
[404361856,1770076256421,-63303.61704802,0.00016859,2]
[404361857,1770076256441,-74379.65883774,0.00016859,2]
[404361858,1770076256459,-1630.0,0.00016863,2]
[404361859,1770076256470,-162.0,0.000169,3]
[404361860,1770076256480,-162.0,0.000169,3]
[404361861,1770076256489,-386.87667747,0.00016909,2]
[404361862,1770076256499,-2172.44734327,0.00016986,2]
[404361863,1770076256508,-300.0,0.00017,2]
[404361864,1770076256520,-500.0,0.00017,2]
[404361865,1770076256530,-500.0,0.00017,2]
[404361866,1770076256539,-500.0,0.00017,2]
[404361867,1770076256548,-500.0,0.00017,5]
[404361868,1770076256557,-500.0,0.00017,2]
[404361869,1770076256567,-500.0,0.00017,2]
[404361870,1770076256577,-500.0,0.00017,2]
[404361871,1770076256587,-5888.0,0.00017009,2]
[404361872,1770076256599,-1630.0,0.00017049,2]
[404361873,1770076256611,-1000.0,0.00017112,2]
[404361874,1770076256620,-500.0,0.00017124,2]
[404361875,1770076256629,-230.88290778,0.00017124,2]
[404361876,1770076256639,-1630.0,0.00017156,2]
[404361877,1770076256647,-1630.0,0.00017173,2]
[404361878,1770076256656,-280.03725112,0.00017188,2]
[404361879,1770076256665,-200.0,0.00017233,2]
[404361880,1770076256676,-1000.0,0.0001726,2]
[404361881,1770076256688,-1630.0,0.00017277,2]
[404361882,1770076256699,-1630.0,0.00017313,2]
[404361883,1770076256708,-367.43798829,0.0001733,2]
[404361884,1770076256719,-2602.29944506,0.00017332,2]
[404361885,1770076256731,-5888.0,0.00017429,2]
[404361886,1770076256740,-500.0,0.00017452,2]
[404361887,1770076256749,-200.0,0.00017494,2]
[404361888,1770076256758,-246.0,0.00017498,2]
[404361889,1770076256767,-162.0,0.000175,4]
[404361890,1770076256776,-162.0,0.000175,4]
[404361891,1770076256785,-1000.0,0.00017534,2]
[404361892,1770076256794,-5888.0,0.00017599,2]
[404361893,1770076256803,-1630.0,0.00017632,2]
[404361894,1770076256812,-318.0,0.00017663,2]
[404361895,1770076256821,-500.0,0.00017672,2]
[404361896,1770076256830,-159.60859955,0.00017698,2]
[404361897,1770076256840,-1000.0,0.00017709,2]
[404361898,1770076256849,-290.39862941,0.00017736,2]
[404361899,1770076256858,-150.02317292,0.00017738,2]
[404361900,1770076256866,-162.0,0.000178,4]
[404361901,1770076256875,-500.0,0.00017808,2]
[404361902,1770076256884,-1000.0,0.00017808,2]
[404361903,1770076256894,-411.0,0.00017815,2]
[404361904,1770076256904,-2000.0,0.0001782,2]
[404361905,1770076256914,-2000.0,0.0001782,2]
[404361906,1770076256923,-200.0,0.00017856,2]
[404361907,1770076256933,-500.0,0.00017863,2]
[404361908,1770076256942,-200.0,0.00017867,2]
[404361909,1770076256952,-1379.17071038,0.0001789,2]
[404361910,1770076256961,-846.12,0.00017899,2]
[404361911,1770076256970,-500.0,0.00017899,2]
[404361912,1770076256979,-649.78,0.00017899,2]
[404361913,1770076256989,-540.92,0.00017899,2]
[404361914,1770076256999,-20453.46079029,0.000179,3]
[404361915,1770076257008,-500.0,0.000179,2]
[404361916,1770076257019,-63303.61704802,0.000179,2]
[404361917,1770076257028,-1109.13535275,0.000179,2]
[404361918,1770076257037,-74379.65883774,0.000179,2]
[404361919,1770076257046,-11308.27724113,0.000179,2]
[404361920,1770076257056,-367.43798829,0.000179,3]
[404361921,1770076257066,-2602.29944506,0.000179,2]
[404361922,1770076257076,-13604.79922063,0.000179,2]
[404361923,1770076257086,-500.0,0.000179,2]
[404361924,1770076257098,-500.0,0.000179,2]
[404361925,1770076257109,-500.0,0.000179,2]
[404361926,1770076257119,-500.0,0.000179,2]
[404361927,1770076257139,-500.0,0.000179,2]
[404361928,1770076257148,-500.0,0.000179,2]
[404361929,1770076257159,-500.0,0.000179,2]
[404361930,1770076257170,-500.0,0.000179,2]
[404361931,1770076257182,-500.0,0.000179,2]
[404361932,1770076257191,-500.0,0.000179,2]
[404361933,1770076257200,-500.0,0.000179,2]
[404361934,1770076257209,-500.0,0.000179,2]
[404361935,1770076257221,-500.0,0.000179,2]
[404361936,1770076257232,-500.0,0.000179,2]
[404361937,1770076257241,-500.0,0.000179,2]
[404361938,1770076257252,-500.0,0.000179,2]
[404361939,1770076257263,-500.0,0.000179,2]
[404361940,1770076257273,-500.0,0.000179,2]
[404361941,1770076257283,-500.0,0.000179,2]